bitfinex/quotes_ETHUSD_20250130
["timestamp","ask_amount","ask_price","bid_price","bid_amount"]
[1738266370933,3.06442,3263.3,3262.9,8.93]
[1738266371110,3.06442,3263.3,3263.0,0.55]
[1738266373258,3.06457,3263.1,3263.0,0.55]
[1738266373662,0.8142,3263.2,3263.0,0.55]
[1738266373860,6.12888,3263.3,3263.0,0.55]
[1738266374065,3.06448,3263.2,3263.0,0.55]
[1738266375244,3.06442,3263.3,3263.0,1.55814567]
[1738266379770,3.06398,3263.8,3263.1,0.7687]
[1738266380068,3.0641,3263.6,3263.1,3.83326]
[1738266380677,3.0641,3263.6,3263.1,12.76326]
[1738266381974,6.12826,3263.6,3263.1,12.76326]
[1738266382187,3.06428,3263.4,3263.3,0.55]
[1738266385865,3.06425,3263.5,3263.3,0.55]
[1738266386072,3.06428,3263.4,3263.3,0.55]
[1738266388202,3.06447,3263.2,3263.1,8.93]
[1738266391094,3.06447,3263.2,3263.1,9.48]
[1738266391802,3.06447,3263.2,3263.1,8.93]
[1738266392512,3.06461,3263.1,3262.9,0.55]
[1738266392710,3.06461,3263.1,3263.0,2.01575879]
[1738266403737,3.06461,3263.1,3263.0,1.46575879]
[1738266404048,3.06475,3262.9,3262.8,0.47769613]
[1738266404195,3.82635,3262.9,3262.8,0.47769613]
[1738266405143,3.82635,3262.9,3262.6,0.55]
[1738266405441,3.06501,3262.7,3262.6,0.55]
[1738266406314,3.82635,3262.9,3262.6,0.55]
[1738266406517,6.12889,3263.3,3262.9,0.55]
[1738266406701,3.06443,3263.3,3262.9,0.55]
[1738266406901,3.06451,3263.2,3262.9,0.55]
[1738266408430,3.06459,3263.1,3262.9,0.55]
[1738266408636,3.06459,3263.1,3262.8,0.55]
[1738266409404,3.06459,3263.1,3262.7,0.8313]
[1738266409599,6.12889,3263.3,3262.9,0.55]
[1738266409834,3.06449,3263.2,3262.9,0.55]
[1738266410943,3.06443,3263.3,3262.8,1.01233516]
[1738266411241,3.06457,3263.1,3262.9,0.55]
[1738266411403,3.06457,3263.1,3262.8,0.55]
[1738266414055,3.06457,3263.1,3262.9,0.62766625]
[1738266415069,3.06457,3263.1,3262.8,1.02769613]
[1738266417501,3.06457,3263.1,3262.8,0.55]
[1738266420506,0.7616,3263.5,3262.9,0.0075]
[1738266420507,3.82585,3263.5,3262.9,0.0075]
[1738266420719,0.831,3264.3,3263.4,2.85872378]
[1738266421017,6.12791,3263.8,3263.5,0.58063818]
[1738266421197,3.06409,3263.7,3263.5,0.55]
[1738266422481,3.0639,3263.9,3263.3,0.5575]
[1738266422678,3.06378,3264.0,3263.7,0.55]
[1738266422895,6.12759,3264.0,3263.7,0.55]
[1738266423616,3.06378,3264.0,3263.7,0.55]
[1738266423823,6.12758,3264.0,3263.7,0.55]
[1738266424642,3.06378,3264.0,3263.7,0.55]
[1738266424939,3.06391,3263.8,3263.7,0.55]
[1738266429129,3.06402,3263.7,3263.4,0.439949]
[1738266429293,3.06411,3263.6,3263.4,0.439949]
[1738266429696,0.03064018,3263.7,3263.2,8.93]
[1738266429997,3.06434,3263.4,3263.2,8.93]
[1738266432945,3.06413,3263.6,3263.3,0.55]
[1738266433109,3.06396,3263.8,3263.3,0.55]
[1738266433311,3.06396,3263.8,3263.5,0.55]
[1738266433516,3.06376,3264.0,3263.5,0.55]
[1738266433713,3.06376,3264.0,3263.7,0.55]
[1738266433928,3.06391,3263.8,3263.7,0.55]
[1738266434131,3.06391,3263.8,3263.5,0.55]
[1738266434442,3.06391,3263.8,3263.7,0.55]
[1738266434661,3.86591,3263.8,3263.5,0.55]
[1738266434847,0.802,3263.8,3263.2,8.93]
[1738266435006,3.06434,3263.4,3263.3,0.55]
[1738266435701,0.802,3263.8,3263.3,0.55]
[1738266435896,3.064,3263.7,3263.3,0.55]
[1738266436131,3.06419,3263.5,3263.3,0.55]
[1738266437516,3.06428,3263.4,3263.3,0.55]
[1738266438249,3.06428,3263.4,3263.2,8.93]
[1738266439200,3.06416,3263.6,3263.2,8.93]
[1738266439368,3.06416,3263.6,3263.2,10.666466]
[1738266439693,0.802,3263.8,3263.2,10.666466]
[1738266439694,3.06392,3263.8,3263.5,0.55]
[1738266439862,3.06377,3264.0,3263.5,0.55]
[1738266440656,3.06383,3263.9,3263.5,0.55]
[1738266442091,3.06393,3263.8,3263.5,0.55]
[1738266442311,3.06383,3263.9,3263.5,0.9814]
[1738266447618,3.06368,3264.1,3263.5,7.04557]
[1738266447786,3.06349,3264.3,3263.7,7.22822378]
[1738266448120,0.8086,3264.4,3263.7,7.22822378]
[1738266448121,0.8086,3264.4,3263.8,0.5575]
[1738266448285,0.8086,3264.4,3264.0,0.55]
[1738266448818,3.06328,3264.5,3264.0,0.55]
[1738266449376,3.06335,3264.4,3264.0,0.55]
[1738266450144,3.06335,3264.4,3264.1,0.8039]
[1738266451445,3.85194,3264.7,3264.2,0.55]
[1738266451610,3.06316,3264.6,3264.2,1.07739375]
[1738266451943,3.06314,3264.7,3264.2,1.046762]
[1738266452604,3.8902,3264.9,3264.2,1.046762]
[1738266452806,3.0629,3264.9,3264.4,0.55]
[1738266453044,3.06302,3264.8,3264.4,0.55]
[1738266453337,3.06302,3264.8,3264.4,0.9610182]
[1738266453509,3.0629,3264.9,3264.4,0.9610182]
[1738266453709,3.0629,3264.9,3264.4,0.99164791]
[1738266454560,6.12584,3264.9,3264.4,0.99164791]
[1738266455208,3.0629,3264.9,3264.6,0.55]
[1738266455409,3.06261,3265.2,3264.7,3.06306]
[1738266455608,3.06242,3265.4,3265.0,0.55]
[1738266455962,3.06242,3265.4,3265.0,3.40872378]
[1738266456444,3.06231,3265.6,3265.0,6.47141378]
[1738266456999,3.06233,3265.5,3265.0,6.47141378]
[1738266457213,3.06233,3265.5,3265.2,0.55]
[1738266457595,3.06231,3265.6,3265.2,0.55]
[1738266458341,3.06231,3265.5,3265.2,0.55]
[1738266459547,3.06192,3266.0,3265.4,0.55]
[1738266459696,3.06199,3265.9,3265.5,0.03061891]
[1738266460036,3.06203,3265.8,3265.5,0.03061891]
[1738266460242,3.06192,3266.0,3265.5,0.03061891]
[1738266460745,3.06192,3266.0,3265.7,0.55]
[1738266461398,3.0617,3266.2,3265.8,0.0075]
[1738266461600,3.0617,3266.2,3265.9,0.55]
[1738266462729,3.06151,3266.4,3266.1,0.55]
[1738266463299,3.06129,3266.6,3266.1,0.55]
[1738266463515,3.06139,3266.5,3266.1,0.55]
[1738266466608,3.06119,3266.7,3266.4,0.55]
[1738266467457,3.06135,3266.6,3266.4,0.55]
[1738266469699,3.06113,3266.8,3266.4,0.55]
[1738266470274,3.06129,3266.6,3266.4,0.55]
[1738266471105,3.06138,3266.5,3266.4,0.97393238]
[1738266471262,3.06138,3266.5,3266.4,0.55]
[1738266475215,3.06154,3266.4,3266.2,0.55]
[1738266475814,3.06156,3266.3,3266.2,1.16374539]
[1738266476114,3.06156,3266.3,3266.2,0.55]
[1738266477212,3.06138,3266.5,3266.2,0.55]
[1738266477626,6.12284,3266.5,3266.2,0.55]
[1738266477772,3.06154,3266.4,3266.2,0.55]
[1738266480323,3.06137,3266.6,3266.2,0.55]
[1738266483170,0.7782,3267.1,3266.3,3.09961281]
[1738266483374,3.06086,3267.1,3266.5,0.55]
[1738266483581,6.12175,3267.1,3266.6,0.03060904]
[1738266483931,3.061,3267.0,3266.8,0.55]
[1738266484111,3.061,3267.0,3266.6,0.55]
[1738266485317,3.06098,3267.0,3266.6,0.55]
[1738266485683,0.7782,3267.3,3266.6,0.55]
[1738266485884,3.06098,3267.0,3266.6,0.55]
[1738266487138,3.06098,3267.0,3266.8,0.55]
[1738266488770,3.06076,3267.2,3266.8,0.58060917]
[1738266488928,3.06076,3267.2,3267.0,0.55]
[1738266489134,6.12116,3267.4,3267.0,0.55]
[1738266489545,3.06065,3267.3,3267.0,0.55]
[1738266489758,3.8408,3267.6,3267.0,0.55]
[1738266489955,3.0606,3267.4,3267.0,0.55]
[1738266490137,6.90119,3267.6,3267.2,0.55]
[1738266490325,6.12079,3267.6,3267.2,0.55]
[1738266490671,3.06037,3267.6,3267.2,0.55]
[1738266491167,3.06056,3267.4,3267.2,0.55]
[1738266491371,3.06063,3267.3,3267.2,0.55]
[1738266491667,3.06056,3267.4,3267.1,5.37]
[1738266491864,3.06069,3267.3,3267.1,5.907]
[1738266492234,3.06044,3267.5,3267.2,0.55]
[1738266492443,3.06055,3267.4,3267.2,0.55]
[1738266493275,3.06044,3267.5,3267.2,0.55]
[1738266493438,3.06063,3267.3,3267.2,5.92]
[1738266493935,3.06063,3267.3,3267.2,5.37]
[1738266494146,3.88563,3267.3,3267.2,5.37]
[1738266496023,3.06063,3267.3,3267.2,5.37]
[1738266497069,3.06044,3267.5,3267.2,6.457]
[1738266497379,6.12096,3267.5,3267.3,0.55]
[1738266497524,3.06044,3267.5,3267.3,0.55]
[1738266499374,3.06044,3267.5,3267.3,5.92]
[1738266500255,6.12064,3267.7,3267.3,5.92]
[1738266500461,3.0604,3267.6,3267.4,0.6457]
[1738266500829,3.06044,3267.5,3267.4,0.6457]
[1738266501383,3.06053,3267.4,3267.3,5.92]
[1738266503037,0.825,3267.8,3267.3,5.92]
[1738266503341,6.12102,3267.5,3267.3,5.92]
[1738266503536,3.06049,3267.5,3267.3,5.92]
[1738266504471,3.06053,3267.4,3267.3,5.37]
[1738266504665,0.825,3267.8,3267.4,0.55]
[1738266504868,3.06008,3267.9,3267.4,6.76390226]
[1738266505054,6.12021,3267.9,3267.4,6.7333]
[1738266505252,3.06019,3267.8,3267.4,6.7333]
[1738266505543,6.12022,3267.9,3267.5,1.03846]
[1738266505774,3.06017,3267.8,3267.5,1.03846]
[1738266506189,3.06017,3267.8,3267.6,0.55]
[1738266507327,3.06017,3267.8,3267.5,1.03846]
[1738266507533,3.06035,3267.6,3267.4,5.37]
[1738266507673,6.12077,3267.6,3267.5,0.55]
[1738266508192,3.06035,3267.6,3267.5,0.55]
[1738266508389,3.06044,3267.5,3267.4,5.37]
[1738266513015,3.06044,3267.5,3267.4,5.94274668]
[1738266513315,6.12065,3267.7,3267.4,7.33272135]
[1738266513518,3.06032,3267.7,3267.4,7.33272135]
[1738266513674,3.06035,3267.6,3267.4,7.33272135]
[1738266513878,3.06032,3267.7,3267.4,7.33272135]
[1738266514178,3.06011,3267.9,3267.5,0.55]
[1738266514385,3.06011,3267.9,3267.7,0.55]
[1738266514692,3.06011,3267.9,3267.7,5.92]
[1738266516078,3.06016,3267.8,3267.7,5.92]
[1738266516982,3.87796,3267.8,3267.7,5.37]
[1738266517481,3.06016,3267.8,3267.7,5.92]
[1738266517688,3.06016,3267.8,3267.7,6.512]
[1738266518722,3.06016,3267.8,3267.7,7.08508602]
[1738266520479,3.06016,3267.8,3267.7,7.31437498]
[1738266521129,3.06016,3267.8,3267.7,6.64770831]
[1738266521334,3.06016,3267.8,3267.7,6.05570831]
[1738266521638,3.85226,3267.8,3267.7,5.50570831]
[1738266523190,3.06016,3267.8,3267.7,5.50570831]
[1738266523927,3.06016,3267.8,3267.7,5.27641935]
[1738266525636,3.06016,3267.8,3267.7,4.70333333]
[1738266527202,3.06016,3267.8,3267.7,5.45703333]
[1738266527820,3.06016,3267.8,3267.7,6.55273666]
[1738266528775,3.06016,3267.8,3267.7,7.35558787]
[1738266529636,3.05988,3268.1,3267.8,0.55]
[1738266530479,3.05997,3268.0,3267.8,0.55]
[1738266531263,3.05997,3268.0,3267.8,1.26262015]
[1738266531579,3.0595,3268.5,3267.9,0.0075]
[1738266531788,3.05968,3268.4,3267.9,0.81032506]
[1738266532282,3.05983,3268.2,3267.9,0.81032506]
[1738266533345,3.05983,3268.2,3268.1,0.55]
[1738266533840,3.05983,3268.2,3268.1,1.3197]
[1738266534995,3.05968,3268.4,3268.1,6.80950066]
[1738266535974,3.05969,3268.3,3268.1,6.80950066]
[1738266536388,3.05946,3268.6,3268.2,0.77936024]
[1738266536686,3.05946,3268.6,3268.5,0.55]
[1738266537585,3.05926,3268.8,3268.5,0.55]
[1738266538591,3.05934,3268.7,3268.5,0.55]
[1738266539243,3.05934,3268.7,3268.5,1.15772333]
[1738266539444,3.05912,3269.0,3268.6,0.0075]
[1738266539659,6.11824,3269.0,3268.8,0.55]
[1738266539862,3.05906,3269.0,3268.8,0.55]
[1738266540687,3.05913,3268.9,3268.8,0.55]
[1738266541096,3.05928,3268.8,3268.4,3.0]
[1738266541391,3.05928,3268.8,3268.5,1.13589571]
[1738266542184,3.05932,3268.7,3268.5,1.13589571]
[1738266542386,3.05928,3268.8,3268.5,1.13589571]
[1738266542685,6.11858,3268.8,3268.4,3.0]
[1738266542985,6.11858,3268.8,3268.6,0.22877964]
[1738266543208,3.05928,3268.8,3268.6,0.8007373]
[1738266543351,3.05928,3268.8,3268.7,0.55]
[1738266543996,3.05932,3268.7,3268.6,0.8007373]
[1738266544580,0.8325,3268.9,3268.6,0.8007373]
[1738266544788,0.8325,3268.9,3268.5,0.55]
[1738266545942,3.89166,3268.9,3268.5,0.55]
[1738266546143,0.8325,3268.9,3268.5,1.3508]
[1738266546372,3.05862,3269.5,3268.7,3.05931]
[1738266546578,0.7505,3269.7,3269.1,0.0075]
[1738266546777,3.80893,3269.7,3269.1,0.55]
[1738266546962,3.05855,3269.6,3269.1,0.55]
[1738266547158,0.7505,3269.7,3269.1,0.55]
[1738266547364,3.05885,3269.2,3268.8,0.7937]
[1738266547598,3.05909,3269.0,3268.4,0.7937]
[1738266547780,3.05909,3269.0,3268.4,1.34340333]
[1738266547962,3.0589,3269.2,3268.5,0.55]
[1738266548152,3.05905,3269.0,3268.5,0.55]
[1738266548893,3.05923,3268.8,3268.5,0.55]
[1738266549694,3.05923,3268.8,3268.7,0.55]
[1738266550054,3.05905,3269.0,3268.7,0.55]
[1738266550392,3.05914,3268.9,3268.7,0.55]
[1738266550689,3.05922,3268.8,3268.7,0.55]
[1738266550879,3.05905,3269.0,3268.7,0.55]
[1738266551193,3.05918,3268.9,3268.7,0.55]
[1738266551579,3.05922,3268.8,3268.7,0.55]
[1738266552066,3.05922,3268.8,3268.7,1.34949225]
[1738266553610,3.83442,3268.8,3268.7,0.79949225]
[1738266553772,3.83442,3268.8,3268.7,0.57103489]
[1738266553956,3.83461,3268.6,3268.5,0.57103489]
[1738266555670,3.05997,3268.0,3267.9,0.57103489]
[1738266556955,3.05997,3268.0,3267.9,0.79957408]
[1738266557157,3.05997,3268.0,3267.9,0.22853919]
[1738266557356,3.81477,3268.0,3267.9,0.22853919]
[1738266558572,3.06025,3267.7,3267.6,0.22853919]
[1738266560808,3.06025,3267.7,3267.6,0.80044035]
[1738266562130,3.05992,3268.1,3267.8,0.55]
[1738266562405,3.05997,3268.0,3267.8,0.55]
[1738266562631,3.05992,3268.1,3267.8,0.55]
[1738266563850,6.11987,3268.1,3267.8,0.55]
[1738266564243,3.06006,3267.9,3267.8,0.55]
[1738266566424,3.05992,3268.1,3267.8,0.55]
[1738266566626,3.0599,3268.1,3267.8,0.55]
[1738266567345,3.05954,3268.5,3267.8,0.55]
[1738266567508,3.05961,3268.4,3268.1,0.8039]
[1738266567849,3.05937,3268.7,3268.2,0.55]
[1738266568524,3.05937,3268.7,3268.2,3.60976]
[1738266568838,6.11838,3268.9,3268.4,0.55]
[1738266569053,3.05918,3268.9,3268.4,0.55]
[1738266569362,3.05934,3268.7,3268.4,0.55]
[1738266569855,3.05934,3268.7,3268.4,0.989586]
[1738266570258,3.05918,3268.9,3268.4,0.989586]
[1738266570831,3.05918,3268.9,3268.6,0.55]
[1738266572722,3.05918,3268.9,3268.7,0.57143779]
[1738266574564,3.05918,3268.9,3268.5,0.55]
[1738266574875,3.05918,3268.9,3268.5,1.37606741]
[1738266575773,3.05918,3268.9,3268.6,0.57123758]
[1738266576682,3.05899,3269.1,3268.7,0.55]
[1738266576833,3.05876,3269.3,3268.9,0.55]
[1738266577036,3.05887,3269.2,3268.9,0.55]
[1738266578140,3.05895,3269.1,3268.9,0.55]
[1738266579386,3.05881,3269.3,3268.9,0.55]
[1738266581381,0.8208,3269.4,3268.9,0.55]
[1738266581595,3.0589,3269.2,3268.9,0.55]
[1738266582494,3.05871,3269.4,3268.9,1.01853346]
[1738266582802,3.05871,3269.4,3268.9,4.047055]
[1738266583152,3.05857,3269.5,3269.2,0.55]
[1738266584452,3.05852,3269.6,3269.2,0.55]
[1738266585461,3.05857,3269.5,3269.2,0.55]
[1738266585805,3.05832,3269.8,3269.3,0.0075]
[1738266585973,6.11668,3269.8,3269.4,0.55]
[1738266586314,6.11668,3269.8,3269.6,0.55]
[1738266586457,3.05835,3269.8,3269.6,0.55]
[1738266586881,3.0581,3270.0,3269.6,0.55]
[1738266587301,3.05826,3269.9,3269.6,0.55]
[1738266587458,3.0581,3270.0,3269.6,0.55]
[1738266587670,3.05831,3269.8,3269.6,0.55]
[1738266587997,3.0581,3270.0,3269.6,0.55]
[1738266588207,3.2254956,3270.2,3270.0,0.55]
[1738266588208,6.2834856,3270.2,3270.0,0.55]
[1738266588505,3.2254956,3270.2,3270.0,0.55]
[1738266592917,3.05801,3270.1,3270.0,0.55]
[1738266593882,3.0582,3269.9,3269.7,0.44380227]
[1738266594102,3.0582,3269.9,3269.6,0.565]
[1738266595737,3.0581,3270.0,3269.6,3.565]
[1738266596435,3.0581,3270.0,3269.8,0.55]
[1738266596817,0.1675456,3270.2,3269.9,0.815]
[1738266596998,3.05801,3270.1,3270.0,0.55]
[1738266598936,6.1161,3270.1,3269.6,3.836]
[1738266599139,3.05837,3269.8,3269.3,1.214343]
[1738266599297,3.05813,3270.0,3269.3,4.2026183]
[1738266599501,6.11631,3270.0,3269.4,3.06615]
[1738266599723,3.05813,3270.0,3269.5,0.55]
[1738266599910,3.0583,3269.8,3269.5,0.55]
[1738266600923,3.0583,3269.8,3269.7,0.55]
[1738266601136,3.36413,3269.8,3269.6,0.22849712]
[1738266601293,3.08902018,3269.7,3269.6,0.22849712]
[1738266601496,3.86548,3269.7,3269.6,0.22849712]
[1738266602729,3.0588,3269.3,3268.9,0.0075]
[1738266602943,3.0586,3269.5,3269.0,0.55]
[1738266603241,3.05867,3269.4,3269.2,0.55]
[1738266604170,3.05867,3269.4,3269.3,0.77849712]
[1738266605031,3.05867,3269.4,3269.3,1.3501395]
[1738266606073,3.05867,3269.4,3269.3,1.12164238]
[1738266606379,3.05867,3269.4,3269.3,0.57164238]
[1738266609870,3.0585,3269.6,3269.3,1.36954238]
[1738266611351,3.0585,3269.6,3269.3,1.3479]
[1738266611555,6.11705,3269.6,3269.3,1.3479]
[1738266611753,3.05866,3269.4,3269.3,1.3479]
[1738266612067,0.7858,3269.5,3268.7,3.7788]
[1738266612380,3.05882,3269.3,3268.8,0.5575]
[1738266612536,3.05882,3269.3,3268.8,0.0075]
[1738266612751,3.05882,3269.3,3268.8,3.5575]
[1738266613272,3.05882,3269.3,3269.0,0.55]
[1738266613594,3.05882,3269.3,3269.0,0.9836443]
[1738266615089,3.05859,3269.5,3269.0,0.9836443]
[1738266615301,3.05859,3269.5,3269.2,0.55]
[1738266615515,3.05868,3269.4,3269.2,0.55]
[1738266615693,3.05859,3269.5,3269.2,0.55]
[1738266615865,3.05875,3269.3,3269.2,0.55]
[1738266616209,3.05849,3269.6,3269.2,1.49019449]
[1738266616904,3.05849,3269.6,3269.2,1.71913751]
[1738266617068,3.05842,3269.7,3269.4,0.55]
[1738266617764,6.11652,3269.9,3269.4,0.55]
[1738266618184,3.0583,3269.8,3269.4,0.55]
[1738266618404,3.0583,3269.8,3269.6,0.55]
[1738266619183,3.05807,3270.1,3269.8,0.55]
[1738266619717,0.1675456,3270.2,3269.9,0.015]
[1738266620014,0.1675456,3270.2,3270.1,3.07301]
[1738266620213,0.1675456,3270.2,3270.1,3.62301]
[1738266620419,0.1675456,3270.2,3270.1,4.42369076]
[1738266620577,0.1675456,3270.2,3270.1,7.42369076]
[1738266621208,0.1675456,3270.2,3270.1,7.99604832]
[1738266622916,0.1675456,3270.2,3270.1,5.15184808]
[1738266623270,0.1675456,3270.2,3270.1,5.15934808]
[1738266625204,0.1675456,3270.2,3270.1,8.22485808]
[1738266625473,0.1675456,3270.2,3270.1,5.16684808]
[1738266627923,0.1675456,3270.2,3270.1,8.22485808]
[1738266631227,0.1675456,3270.2,3270.1,5.15934808]
[1738266631815,0.1675456,3270.2,3270.1,2.15934808]
[1738266632677,0.20447625,3270.2,3270.1,2.15934808]
[1738266633982,0.20447625,3270.2,3270.1,1.58699052]
[1738266635635,0.20447625,3270.2,3270.1,2.44460161]
[1738266635785,0.10447625,3270.2,3270.1,2.44460161]
[1738266636412,0.10447625,3270.2,3270.1,3.26010161]
[1738266637832,0.10447625,3270.2,3270.1,3.26760161]
[1738266638204,0.10447625,3270.2,3270.1,6.32561161]
[1738266640638,0.10447625,3270.2,3270.1,3.26760161]
[1738266643237,3.16238625,3270.2,3270.1,2.43710161]
[1738266646433,3.16238625,3270.2,3270.1,1.88710161]
[1738266646733,0.10447625,3270.2,3270.1,1.88710161]
[1738266649936,0.10447625,3270.2,3270.1,1.08642085]
[1738266654347,3.16238625,3270.2,3270.1,1.08642085]
[1738266654506,0.10447625,3270.2,3270.1,1.08642085]
[1738266654926,3.16238625,3270.2,3270.1,1.08642085]
[1738266656999,0.10447625,3270.2,3270.1,1.08642085]
[1738266657197,3.16238625,3270.2,3270.1,1.08642085]
[1738266658897,3.16238625,3270.2,3270.1,1.54495465]
[1738266661071,3.95768625,3270.2,3270.1,1.54495465]
[1738266662566,3.95768625,3270.2,3270.1,0.51406329]
[1738266663232,3.95768625,3270.2,3270.1,0.28525353]
[1738266663931,3.98832643,3270.2,3270.1,0.28525353]
[1738266664098,3.95768625,3270.2,3270.1,0.28525353]
[1738266664297,3.05858,3269.5,3269.1,0.5575]
[1738266664701,3.05877,3269.3,3269.1,0.0075]
[1738266665008,0.03630967,3269.2,3269.1,0.2364667]
[1738266665216,3.05877,3269.3,3269.1,0.2364667]
[1738266665386,0.03630967,3269.2,3269.1,0.2364667]
[1738266665590,3.05877,3269.3,3269.1,0.2364667]
[1738266665787,3.05877,3269.3,3269.2,0.74397596]
[1738266667922,3.05877,3269.3,3269.2,0.97294266]
[1738266668525,3.83057,3269.3,3269.2,0.97294266]
[1738266670190,0.7667,3269.6,3269.2,0.98044266]
[1738266670391,3.05843,3269.7,3269.3,1.3618]
[1738266670686,3.82493,3269.9,3269.4,0.82522864]
[1738266671045,6.88319,3269.9,3269.4,0.82522864]
[1738266671651,6.8832,3269.9,3269.4,0.82522864]
[1738266672320,3.82493,3269.9,3269.5,0.2289667]
[1738266672631,3.82493,3269.9,3269.5,0.97294266]
[1738266672632,3.05839,3269.7,3269.5,0.97294266]
[1738266672837,6.88321,3269.9,3269.6,0.17981713]
[1738266674027,3.82493,3269.9,3269.7,0.2861446]
[1738266674240,3.05823,3269.9,3269.7,0.2861446]
[1738266674446,0.0675456,3270.2,3269.8,0.7986]
[1738266674736,3.1255056,3270.2,3269.8,0.7986]
[1738266674907,3.05802,3270.1,3269.8,0.7986]
[1738266675113,3.05802,3270.1,3269.9,0.2861446]
[1738266676816,3.05802,3270.1,3270.0,0.2861446]
[1738266677237,3.1254956,3270.2,3270.0,0.2861446]
[1738266677756,3.1254956,3270.2,3270.1,7.28233378]
[1738266677757,0.0675456,3270.2,3270.1,7.28233378]
[1738266677912,0.0675456,3270.2,3270.1,8.64169529]
[1738266678252,0.0675456,3270.2,3270.1,2.70996151]
[1738266678460,0.10341405,3270.2,3270.1,1.6442446]
[1738266678653,0.10341405,3270.2,3270.1,0.8361446]
[1738266679352,0.10341405,3270.2,3270.1,1.29362836]
[1738266679516,0.10341405,3270.2,3270.1,1.52237025]
[1738266681856,0.10341405,3270.2,3270.1,1.53737025]
[1738266682018,0.10341405,3270.2,3270.1,5.83762628]
[1738266682715,0.0675456,3270.2,3270.1,5.83762628]
[1738266683375,0.0675456,3270.2,3270.1,5.86820193]
[1738266683568,0.0675456,3270.2,3270.1,8.69635006]
[1738266686553,0.10211425,3270.2,3270.1,8.69635006]
[1738266686764,0.0675456,3270.2,3270.1,8.69635006]
[1738266689749,0.10227793,3270.2,3270.1,8.69635006]
[1738266690977,0.10227793,3270.2,3270.1,9.31002229]
[1738266691188,0.10227793,3270.2,3270.1,6.45129851]
[1738266691782,0.10227793,3270.2,3270.1,9.45129851]
[1738266692083,0.0675456,3270.2,3270.1,9.45129851]
[1738266692981,0.0675456,3270.2,3270.1,12.31002229]
[1738266695882,0.0675456,3270.2,3270.1,12.36594019]
[1738266697843,0.0675456,3270.2,3270.1,12.93689048]
[1738266698282,0.0675456,3270.2,3270.1,16.15789048]
[1738266698484,0.0675456,3270.2,3270.1,12.93689048]
[1738266700187,0.0675456,3270.2,3270.1,12.38689048]
[1738266700357,0.0675456,3270.2,3270.1,9.5281667]
[1738266700742,0.0675456,3270.2,3270.1,10.0781667]
[1738266700938,0.0675456,3270.2,3270.1,10.3849667]
[1738266701171,0.0675456,3270.2,3270.1,10.0781667]
[1738266702990,0.0675456,3270.2,3270.1,9.2954667]
[1738266706613,0.0675456,3270.2,3270.1,6.2954667]
[1738266706753,0.0675456,3270.2,3270.1,5.27842067]
[1738266707149,0.10016444,3270.2,3270.1,8.82842067]
[1738266707344,0.10016444,3270.2,3270.1,8.83592067]
[1738266707578,0.0675456,3270.2,3270.1,8.83592067]
[1738266710176,0.0675456,3270.2,3270.1,9.62302067]
[1738266710385,0.0675456,3270.2,3270.1,10.62599245]
[1738266711495,0.0675456,3270.2,3270.1,13.48471623]
[1738266713087,0.66666667,3270.5,3270.4,3.07272]
[1738266713304,0.66666667,3270.5,3270.4,6.62272]
[1738266714929,0.66666667,3270.5,3270.4,6.85146189]
[1738266715230,0.66666667,3270.5,3270.4,9.23724515]
[1738266719018,0.66666667,3270.5,3270.4,5.45850326]
[1738266719241,0.66666667,3270.5,3270.4,6.00850326]
[1738266719437,0.69833538,3270.5,3270.4,9.00850326]
[1738266719837,0.69833538,3270.5,3270.4,9.23745443]
[1738266719838,0.66666667,3270.5,3270.4,9.23745443]
[1738266720635,0.69833538,3270.5,3270.4,9.23745443]
[1738266724743,0.69833538,3270.5,3270.4,5.10254624]
[1738266725044,1.48853538,3270.5,3270.4,2.10254624]
[1738266726054,1.48853538,3270.5,3270.4,2.57974612]
[1738266727521,1.48853538,3270.5,3270.4,2.10254624]
[1738266742193,1.48853538,3270.5,3270.4,1.87359507]
[1738266742717,1.48853538,3270.5,3270.4,2.10254562]
[1738266743496,1.48853538,3270.5,3270.4,2.89804146]
[1738266744191,0.69833538,3270.5,3270.4,5.95576146]
[1738266745202,0.69833538,3270.5,3270.4,5.99383672]
[1738266745357,0.69833538,3270.5,3270.4,6.80943366]
[1738266745556,0.66666667,3270.5,3270.4,6.77886146]
[1738266745959,0.69690392,3270.5,3270.4,6.77886146]
[1738266746507,0.69690392,3270.5,3270.4,7.25606134]
[1738266747092,0.66666667,3270.5,3270.4,7.25606134]
[1738266747666,0.66666667,3270.5,3270.4,10.25606134]
[1738266748087,0.66666667,3270.5,3270.4,9.20639475]
[1738266749418,0.7772,3271.3,3271.1,0.0075]
[1738266749767,0.02957304,3271.2,3271.1,0.0075]
[1738266750181,0.7772,3271.3,3271.1,0.0075]
[1738266750398,0.02939826,3271.2,3271.1,0.0075]
[1738266750708,0.7772,3271.3,3271.1,0.0075]
[1738266750905,1.47236667,3271.5,3271.3,0.0075]
[1738266751112,0.66666667,3271.5,3271.4,5.29184742]
[1738266751296,0.66666667,3271.5,3271.4,8.34863742]
[1738266751492,0.66666667,3271.5,3271.4,8.89863742]
[1738266751663,0.66666667,3271.5,3271.4,10.39988816]
[1738266752164,0.66666667,3271.5,3271.4,11.94472793]
[1738266752781,0.66666667,3271.5,3271.4,13.3281028]
[1738266753176,0.66666667,3271.5,3271.4,13.93393162]
[1738266753591,0.66666667,3271.5,3271.4,14.41073159]
[1738266755208,0.66666667,3271.5,3271.4,14.46662727]
[1738266755407,0.66666667,3271.5,3271.4,13.9898273]
[1738266757604,0.7699,3272.6,3272.5,3.06326]